bitfinex-derivatives/quotes_SOLF0:USTF0_20260107
["timestamp","ask_amount","ask_price","bid_price","bid_amount"]
[1767748784753,91.1985,139.43,139.34,0.60170643]
[1767748785057,84.74,139.43,139.34,0.60170643]
[1767748785353,91.199,139.42,139.34,0.60170643]
[1767748786061,84.74,139.42,139.34,7.06400643]
[1767748787364,84.74,139.42,139.34,0.60170643]
[1767748787862,6.4594,139.41,139.34,0.60170643]
[1767748791075,6.4598,139.4,139.34,0.60170643]
[1767748791363,84.74,139.42,139.34,6.4623]
[1767748791566,84.74,139.42,139.3,185.335]
[1767748791567,6.4582,139.44,139.35,0.60170643]
[1767748791969,6.4584,139.43,139.36,6.4615]
[1767748792167,100.4497,139.45,139.35,0.60170643]
[1767748793371,6.4588,139.42,139.35,7.06370643]
[1767748793570,100.4425,139.46,139.36,0.60170643]
[1767748794164,84.76,139.47,139.37,0.60170643]
[1767748795070,6.4579,139.44,139.37,0.60170643]
[1767748795366,84.76,139.46,139.37,0.60170643]
[1767748795367,84.76,139.46,139.37,7.06280643]
[1767748795759,91.2173,139.46,139.37,0.60170643]
[1767748796569,91.2173,139.46,139.38,7.06220643]
[1767748796774,6.4573,139.46,139.38,7.06220643]
[1767748797069,91.2173,139.46,139.38,7.06220643]
[1767748797863,91.2173,139.46,139.39,0.60170643]
[1767748798259,6.4576,139.45,139.36,7.0770595]
[1767748799358,6.4579,139.44,139.36,7.0770595]
[1767748800275,6.4585,139.43,139.36,7.0770595]
[1767748801771,6.4577,139.45,139.38,6.4606]
[1767748802079,100.4091,139.51,139.37,0.6404148]
[1767748802268,84.76,139.5,139.37,0.6404148]
[1767748802670,100.4216,139.49,139.39,0.6404148]
[1767748802869,84.76,139.5,139.39,0.6404148]
[1767748803176,6.4565,139.48,139.39,7.1002148]
[1767748803374,6.4565,139.48,139.39,0.6404148]
[1767748804473,8.09918316,139.48,139.39,0.6404148]
[1767748804769,8.09918316,139.48,139.4,6.4597]
[1767748805369,1.64268316,139.48,139.36,13.06925137]
[1767748805675,1.64268316,139.44,139.36,0.6404148]
[1767748807576,8.10058316,139.44,139.37,6.4609]
[1767748807772,1.64268316,139.44,139.37,6.4609]
[1767748808778,1.64268316,139.43,139.36,0.6404148]
[1767748809177,1.64268316,139.43,139.34,0.6404148]
[1767748809778,8.10198316,139.41,139.34,0.6404148]
[1767748809973,122.32853246,139.51,139.37,0.6404148]
[1767748810178,200.7962,139.53,139.4,6.4597]
[1767748810179,1.64268316,139.48,139.4,6.4597]
[1767748810580,1.64268316,139.48,139.39,0.6404148]
[1767748810774,6.4565,139.47,139.39,7.1005148]
[1767748810976,84.76,139.48,139.39,0.6404148]
[1767748811576,1.64268316,139.47,139.39,0.6404148]
[1767748811973,8.09938316,139.47,139.39,0.6404148]
[1767748812484,84.76,139.49,139.4,6.4595]
[1767748812984,84.76,139.49,139.39,0.6404148]
[1767748813175,84.76,139.49,139.39,7.1002148]
[1767748813577,185.184,139.49,139.36,13.70966617]
[1767748813984,84.76,139.49,139.39,6.46]
[1767748815486,6.4566,139.47,139.37,0.6404148]
[1767748816384,84.76,139.49,139.37,0.6404148]
[1767748816385,100.4284,139.48,139.37,0.6404148]
[1767748816585,185.185,139.49,139.37,0.6404148]
[1767748816888,84.76,139.48,139.37,0.6404148]
[1767748817084,6.4571,139.46,139.39,6.4601]
[1767748817995,84.76,139.48,139.39,6.4601]
[1767748819580,84.76,139.48,139.41,0.6404148]
[1767748820485,84.76,139.48,139.38,19.52955137]
[1767748820787,84.76,139.48,139.38,6.4603]
[1767748820987,84.76,139.48,139.37,13.70966617]
[1767748820988,6.458,139.44,139.37,0.6404148]
[1767748821493,100.4457,139.46,139.37,0.6404148]
[1767748823491,100.4599,139.44,139.35,0.6404148]
[1767748823678,84.74,139.43,139.35,0.6404148]
[1767748824180,84.74,139.43,139.34,0.6404148]
[1767748824691,84.74,139.42,139.34,0.6404148]
[1767748825302,6.4598,139.4,139.34,7.1029148]
[1767748825992,6.4598,139.4,139.34,0.6404148]
[1767748826692,100.4817,139.41,139.31,20.17326617]
[1767748826893,100.4817,139.41,139.31,0.6404148]
[1767748827094,6.4617,139.36,139.3,13.06925137]
[1767748827291,6.4617,139.36,139.28,0.6404148]
[1767748827586,84.76,139.38,139.28,0.6404148]
[1767748827792,91.2208,139.38,139.29,6.4647]
[1767748828194,84.76,139.38,139.29,6.4647]
[1767748828389,84.76,139.38,139.29,0.6404148]
[1767748828698,100.4754,139.42,139.3,0.6404148]
[1767748828699,84.76,139.42,139.3,0.6404148]
[1767748828887,84.76,139.42,139.35,7.1023148]
[1767748829089,100.438,139.47,139.35,7.1023148]
[1767748829393,185.2044,139.46,139.35,7.1023148]
[1767748829694,84.76,139.45,139.35,7.1023148]
[1767748830191,6.458,139.44,139.36,6.4613]
[1767748830398,84.76,139.45,139.35,0.6404148]
[1767748831489,6.458,139.44,139.35,7.1021148]
[1767748831896,6.458,139.44,139.35,0.6404148]
[1767748832386,185.2146,139.45,139.35,0.6404148]
[1767748832591,84.76,139.44,139.35,0.6404148]
[1767748832903,6.4603,139.39,139.32,0.65698985]
[1767748833498,84.76,139.4,139.29,7.12148985]
[1767748833691,6.4614,139.37,139.29,7.12148985]
[1767748834295,91.2206,139.39,139.3,7.12128985]
[1767748834491,84.76,139.39,139.3,7.12128985]
[1767748834897,84.76,139.39,139.31,0.65698985]
[1767748835092,100.4813,139.41,139.31,0.65698985]
[1767748835292,84.76,139.4,139.31,0.65698985]
[1767748835693,6.4608,139.38,139.31,7.12078985]
[1767748836000,84.76,139.4,139.32,0.65698985]
[1767748836188,84.76,139.4,139.33,6.4629]
[1767748836493,84.76,139.4,139.33,7.11988985]
[1767748836698,91.2199,139.4,139.33,7.11988985]
[1767748836893,84.76,139.4,139.33,0.65698985]
[1767748837291,91.2198,139.4,139.33,7.11978985]
[1767748837901,6.4598,139.4,139.33,7.11978985]
[1767748838401,6.4594,139.41,139.34,7.11938985]
[1767748838601,84.78,139.42,139.34,0.65698985]
[1767748839193,6.4599,139.4,139.34,0.65698985]
[1767748840109,100.4598,139.44,139.34,0.65698985]
[1767748840300,84.78,139.42,139.34,0.65698985]
[1767748840603,84.78,139.42,139.34,7.11948985]
[1767748840998,84.78,139.42,139.35,0.65698985]
[1767748841393,84.78,139.45,139.36,0.65698985]
[1767748842209,84.78,139.45,139.33,13.06925137]
[1767748842210,84.78,139.45,139.37,7.11798985]
[1767748843102,84.78,139.45,139.38,0.65698985]
[1767748843298,91.2364,139.48,139.38,0.65698985]
[1767748843500,6.4564,139.48,139.38,0.65698985]
[1767748843808,91.2364,139.48,139.39,6.4602]
[1767748844010,6.4566,139.47,139.39,6.4602]
[1767748844200,84.78,139.48,139.37,6.4609]
[1767748844401,84.78,139.48,139.35,0.65698985]
[1767748844402,100.438,139.47,139.35,0.65698985]
[1767748844706,100.438,139.47,139.36,6.4615]
[1767748844903,6.4579,139.44,139.36,6.4615]
[1767748845118,6.4579,139.44,139.36,7.11848985]
[1767748845306,6.4579,139.44,139.36,6.4615]
[1767748848106,91.2374,139.46,139.37,6.461]
[1767748848311,84.78,139.46,139.35,0.65698985]
[1767748849613,6.4575,139.45,139.38,6.4606]
[1767748850113,91.2168,139.47,139.39,6.46]
[1767748850610,84.76,139.47,139.39,6.46]
[1767748851014,6.457,139.46,139.39,6.46]
[1767748851214,100.4287,139.48,139.37,6.4608]
[1767748851416,84.76,139.47,139.35,0.65698985]
[1767748851816,6.458,139.44,139.36,6.4616]
[1767748852821,100.4458,139.46,139.35,0.65698985]
[1767748853215,100.4506,139.45,139.35,0.65698985]
[1767748853415,100.4506,139.45,139.34,6.4622]
[1767748853617,84.76,139.44,139.34,6.4622]
[1767748854617,6.4593,139.41,139.34,6.4622]
[1767748857237,6.4593,139.41,139.34,7.11918985]
[1767748859016,6.4588,139.43,139.35,0.65698985]
[1767748860210,84.76,139.44,139.35,0.65698985]
[1767748860211,6.4589,139.42,139.35,0.65698985]
[1767748860518,100.4646,139.43,139.33,0.65698985]
[1767748860726,6.4603,139.39,139.31,0.65698985]
[1767748861118,6.4618,139.36,139.29,13.06925137]
[1767748861319,100.5083,139.37,139.28,0.65698985]
[1767748861716,84.76,139.37,139.28,0.65698985]
[1767748862323,6.4622,139.35,139.28,0.65698985]
[1767748863123,100.4851,139.41,139.29,0.63189625]
[1767748863335,185.2469,139.43,139.3,0.65864989]
[1767748863630,6.4592,139.42,139.33,7.12154989]
[1767748863828,84.78,139.43,139.33,0.65864989]
[1767748864036,84.78,139.43,139.31,13.06925137]
[1767748864326,84.78,139.43,139.31,0.65864989]
[1767748864919,100.463,139.44,139.32,6.4633]
[1767748865116,84.78,139.43,139.32,6.4633]
[1767748865320,185.2479,139.43,139.31,0.65864989]
[1767748865932,6.4598,139.4,139.31,7.12244989]
[1767748866329,185.2479,139.43,139.31,7.12244989]
[1767748866730,6.4603,139.39,139.31,7.12244989]
[1767748866930,185.2479,139.43,139.31,7.12244989]
[1767748867318,185.2479,139.43,139.32,7.12204989]
[1767748868534,6.4598,139.4,139.32,7.12204989]
[1767748868931,6.4598,139.4,139.33,6.4629]
[1767748869638,6.4598,139.4,139.32,0.65864989]
[1767748870533,6.4603,139.39,139.32,0.65864989]
[1767748871135,185.2479,139.43,139.32,7.12204989]
[1767748871345,84.78,139.43,139.32,0.65864989]
[1767748871635,84.78,139.47,139.34,0.65864989]
[1767748872033,84.78,139.47,139.37,0.65864989]
[1767748872433,185.2117,139.48,139.37,0.65864989]
[1767748872829,84.78,139.47,139.37,0.65864989]
[1767748873129,6.4575,139.45,139.38,6.4606]
[1767748873536,100.4531,139.45,139.32,0.65864989]
[1767748873737,100.472,139.42,139.28,113.63955137]
[1767748873937,100.472,139.42,139.29,0.65864989]
[1767748873938,100.479,139.41,139.29,0.65864989]
[1767748874147,6.4608,139.38,139.3,6.4643]
[1767748874334,100.4861,139.4,139.29,0.65864989]
[1767748874738,6.4612,139.37,139.3,6.4643]
[1767748876137,6.4612,139.37,139.24,113.5344]
[1767748876138,6.4635,139.32,139.23,13.06925137]
[1767748876345,185.314,139.34,139.22,15.3078168]
[1767748876548,100.5368,139.33,139.22,15.3078168]
[1767748876744,6.4632,139.33,139.22,21.7756168]
[1767748876936,84.78,139.33,139.23,0.65864989]
[1767748877136,100.504,139.38,139.25,0.65864989]
[1767748877440,84.78,139.36,139.27,0.65864989]
[1767748877743,100.4774,139.42,139.27,0.65864989]
[1767748877744,84.78,139.37,139.27,0.65864989]
[1767748878433,84.78,139.37,139.27,7.12404989]
[1767748878947,100.5294,139.34,139.22,14.64916691]
[1767748879139,100.5116,139.37,139.23,0.65864989]
[1767748879336,84.78,139.36,139.23,0.65864989]
[1767748880138,6.4627,139.34,139.24,6.4669]
[1767748881735,84.8,139.33,139.24,6.4669]
[1767748882943,100.5116,139.37,139.25,0.65864989]
[1767748883149,6.4618,139.36,139.26,0.65864989]
[1767748883447,84.8,139.37,139.26,0.65864989]
[1767748883647,84.8,139.37,139.29,7.12324989]
[1767748883843,84.8,139.37,139.29,0.65864989]
[1767748884244,84.8,139.38,139.26,0.65864989]
[1767748884436,91.2613,139.37,139.27,7.12414989]
[1767748885051,100.4742,139.42,139.29,0.65864989]
[1767748885250,84.8,139.41,139.29,0.65864989]
[1767748885945,6.4604,139.39,139.3,6.4641]
[1767748887745,6.4608,139.38,139.29,0.65864989]
[1767748889654,6.4608,139.38,139.29,7.12334989]
[1767748890156,6.4608,139.38,139.3,6.4641]
[1767748891451,84.8,139.39,139.27,0.65864989]
[1767748891658,100.5011,139.38,139.27,0.65864989]
[1767748892052,6.4622,139.35,139.27,7.12424989]
[1767748892447,84.8,139.37,139.28,0.62921769]
[1767748893560,91.2615,139.37,139.29,6.4648]
[1767748896261,6.4606,139.39,139.31,0.62921769]
[1767748896449,91.2606,139.39,139.31,0.62921769]
[1767748896652,84.8,139.39,139.33,6.463]
[1767748896851,84.8,139.39,139.33,7.09221769]
[1767748897059,84.8,139.43,139.33,7.09221769]
[1767748897259,100.4593,139.44,139.33,7.09221769]
[1767748897459,84.8,139.43,139.33,7.09221769]
[1767748897857,84.8,139.43,139.33,0.62921769]
[1767748898251,91.2587,139.43,139.35,6.4619]
[1767748898464,84.8,139.43,139.34,0.62921769]
[1767748898664,100.4283,139.48,139.34,0.62921769]
[1767748898859,84.8,139.47,139.35,0.62921769]
[1767748899554,6.4575,139.45,139.37,6.461]
[1767748900064,84.8,139.47,139.37,0.62921769]
[1767748900463,104.6523386,139.51,139.38,0.62921769]
[1767748900672,84.8,139.5,139.38,0.62921769]
[1767748901160,84.8,139.51,139.4,0.62921769]
[1767748901664,100.373,139.56,139.43,0.62921769]
[1767748901866,84.8,139.55,139.43,0.62921769]
[1767748902163,104.6088386,139.57,139.43,0.62921769]
[1767748902164,100.36,139.58,139.45,0.62921769]
[1767748902366,185.1647,139.57,139.45,0.62921769]
[1767748902964,6.4529,139.55,139.45,0.62921769]
[1767748903161,84.8,139.57,139.45,0.62921769]
[1767748903961,100.371,139.56,139.45,0.62921769]
[1767748904162,185.1664,139.57,139.42,185.2672]
[1767748904163,104.6296386,139.54,139.42,0.62921769]
[1767748904569,10.6969386,139.54,139.43,7.08731769]
[1767748904771,6.4535,139.54,139.43,0.62921769]
[1767748905069,6.4539,139.53,139.43,7.08731769]
[1767748905266,100.395,139.53,139.4,0.62921769]
[1767748905469,84.76,139.52,139.4,0.62921769]
[1767748905670,6.455,139.51,139.41,7.08821769]
[1767748906173,84.76,139.52,139.42,0.62921769]
[1767748906569,84.76,139.52,139.43,0.62921769]
[1767748906765,84.76,139.52,139.45,6.4572]
[1767748906965,6.4535,139.54,139.45,6.4572]
[1767748907162,100.4006,139.52,139.41,6.4591]
[1767748907367,100.4064,139.51,139.4,0.62921769]
[1767748907568,185.1664,139.51,139.4,0.62921769]
[1767748907767,6.4558,139.49,139.4,7.08871769]
[1767748908160,84.76,139.51,139.4,0.62921769]
[1767748908369,91.2149,139.51,139.41,6.4591]
[1767748908672,91.2149,139.51,139.41,7.08831769]
[1767748908881,84.76,139.51,139.42,0.62921769]
[1767748909374,6.4539,139.53,139.44,6.4577]
[1767748909576,84.76,139.54,139.43,0.62921769]
[1767748909872,104.6092386,139.57,139.45,6.4572]
[1767748909873,6.4531,139.55,139.45,6.4572]
[1767748910064,6.4531,139.55,139.45,7.08641769]
[1767748910261,185.1337,139.56,139.45,7.08641769]
[1767748911485,6.4539,139.53,139.43,91.2181]
[1767748911776,6.4539,139.53,139.44,0.62921769]
[1767748912181,6.453,139.55,139.45,7.08631769]
[1767748912370,6.453,139.55,139.45,0.62921769]
[1767748912582,84.76,139.56,139.45,0.62921769]
[1767748913178,185.1336,139.56,139.45,0.62921769]
[1767748914175,185.1336,139.56,139.42,0.62921769]
[1767748914176,104.6219386,139.55,139.42,0.62921769]
[1767748914578,84.74,139.54,139.42,0.62921769]
[1767748915275,84.74,139.54,139.45,6.4572]
[1767748915877,84.74,139.54,139.46,6.4568]
[1767748916075,84.74,139.54,139.46,0.62921769]
[1767748916279,91.1719,139.57,139.46,0.62921769]
[1767748917070,91.1711,139.59,139.48,0.62921769]
[1767748917473,6.4511,139.59,139.48,0.62921769]
[1767748917670,91.1711,139.59,139.48,0.62921769]
[1767748918579,91.1711,139.59,139.5,6.455]
[1767748918972,91.1711,139.59,139.5,0.64471714]
[1767748918973,84.72,139.59,139.5,0.64471714]
[1767748919176,84.72,139.59,139.51,6.4544]
[1767748919371,84.72,139.59,139.51,7.09911714]
[1767748919571,100.3351,139.61,139.48,0.64471714]
[1767748919778,100.3497,139.59,139.48,7.10041714]
[1767748920375,189.2907386,139.62,139.49,6.4555]
[1767748920581,185.0473,139.62,139.5,0.64471714]
[1767748920877,100.3562,139.58,139.47,0.64471714]
[1767748921182,189.3301386,139.57,139.44,0.64471714]
[1767748921580,84.72,139.57,139.46,0.57946219]
[1767748921780,84.72,139.6,139.46,0.57946219]
[1767748921987,125.6608739,139.63,139.51,0.57946219]
[1767748921988,4.2434386,139.63,139.51,0.57946219]
[1767748922286,12.8958,139.66,139.53,0.57946219]
[1767748922287,84.72,139.62,139.53,0.57946219]
[1767748922472,104.5354386,139.67,139.53,100.389]
[1767748922676,84.72,139.66,139.54,7.03236219]
[1767748922878,185.0224,139.66,139.54,7.03236219]
[1767748923078,100.3064,139.65,139.54,7.03236219]
[1767748923285,100.3064,139.65,139.51,0.57946219]
[1767748923286,100.3282,139.62,139.51,0.57946219]
[1767748923473,100.3245,139.63,139.51,0.57946219]
[1767748923878,6.4506,139.6,139.51,0.57946219]
[1767748924090,84.7,139.61,139.51,0.57946219]
[1767748924286,189.2840386,139.61,139.48,0.57946219]
[1767748924587,100.3491,139.59,139.48,0.57946219]
[1767748924977,100.3491,139.59,139.45,185.1676]
[1767748925176,100.3491,139.59,139.45,0.57946219]
[1767748925177,100.3701,139.57,139.45,0.57946219]
[1767748925383,100.3722,139.56,139.45,0.57946219]
[1767748925587,84.7,139.55,139.45,0.57946219]
[1767748926381,91.1532,139.55,139.46,6.4568]
[1767748926587,91.1532,139.55,139.45,0.57946219]
[1767748926788,84.7,139.55,139.46,0.57946219]
[1767748927089,84.7,139.55,139.48,6.4559]
[1767748927788,117.4845386,139.61,139.49,6.4552]
[1767748927789,84.7,139.57,139.49,6.4552]
[1767748928183,84.7,139.57,139.47,0.57946219]
[1767748928584,6.4524,139.56,139.49,6.4554]
[1767748928994,84.7,139.57,139.49,6.4554]
[1767748929192,91.152,139.57,139.49,6.4554]
[1767748929597,91.152,139.57,139.5,6.4549]
[1767748929598,84.7,139.57,139.5,6.4549]
[1767748930390,84.7,139.6,139.5,0.57946219]
[1767748931301,100.3096,139.65,139.52,0.57946219]
[1767748931490,84.7,139.64,139.52,0.57946219]
[1767748931890,104.5436386,139.66,139.52,0.57946219]
[1767748932090,84.7,139.65,139.52,0.57946219]
[1767748932298,84.7,139.65,139.54,0.57946219]
[1767748932500,100.2654,139.71,139.57,100.93716219]
[1767748932501,184.9634,139.71,139.57,100.93716219]
[1767748932792,100.2795,139.69,139.57,85.29946219]
[1767748932984,189.2229386,139.69,139.57,0.57946219]
[1767748933194,4.2434386,139.66,139.54,85.29946219]
[1767748933401,6.448,139.66,139.57,6.4516]
[1767748933996,84.7,139.67,139.58,6.4512]
[1767748934402,100.2669,139.71,139.59,0.57946219]
[1767748934590,84.68,139.72,139.59,100.92546219]
[1767748934795,84.68,139.72,139.6,100.92046219]
[1767748935001,84.68,139.72,139.62,100.90166219]
[1767748935197,6.4443,139.74,139.63,100.89796219]
[1767748935402,84.68,139.75,139.64,100.89126219]
[1767748935709,100.1984,139.8,139.66,100.87706219]
[1767748935906,84.68,139.79,139.66,100.87706219]
[1767748936406,100.2201,139.77,139.64,84.68]
[1767748936705,184.9074,139.76,139.63,85.25946219]
[1767748937106,84.68,139.76,139.65,6.4478]
[1767748937703,6.4429,139.77,139.66,0.57946219]
[1767748938204,91.1018,139.79,139.68,6.4464]
[1767748938403,84.66,139.79,139.68,6.4464]
[1767748938608,189.1130386,139.79,139.66,85.25946219]
[1767748938811,100.2165,139.78,139.66,0.57946219]
[1767748939204,184.8696,139.79,139.67,6.4468]
[1767748939406,100.2131,139.78,139.66,0.57946219]
[1767748939608,6.4422,139.78,139.68,7.02596219]
[1767748939910,100.227,139.76,139.65,0.57946219]
[1767748940204,100.2094,139.79,139.66,0.57946219]
[1767748940405,6.4425,139.78,139.67,7.02656219]
[1767748940606,6.4425,139.78,139.67,0.57946219]
[1767748941211,6.441,139.81,139.7,7.02506219]
[1767748941714,100.1935,139.81,139.68,84.66]
[1767748941909,100.1935,139.81,139.68,85.23946219]
[1767748942105,6.442,139.79,139.69,6.4461]
[1767748942506,14.43564062,139.82,139.69,0.57946219]
[1767748942816,14.43564062,139.82,139.7,0.57946219]
[1767748943721,6.4409,139.81,139.7,7.02496219]
[1767748944008,14.43564062,139.82,139.71,0.57946219]
[1767748944217,20.87624062,139.82,139.72,7.02416219]
[1767748944513,20.87624062,139.82,139.73,0.57946219]
[1767748944714,20.87624062,139.82,139.72,6.4447]
[1767748945013,6.441,139.81,139.7,91.66506219]
[1767748946012,6.441,139.81,139.71,6.4452]
[1767748946411,6.4414,139.8,139.71,6.4452]
[1767748946809,100.1948,139.81,139.67,0.57946219]
[1767748947008,100.1948,139.81,139.68,0.57946219]
[1767748947212,84.6,139.8,139.68,0.57946219]
[1767748947815,100.2074,139.79,139.68,0.57946219]
[1767748948319,6.4419,139.79,139.69,6.4462]
[1767748948829,84.6,139.8,139.7,0.57946219]
[1767748949011,84.6,139.8,139.71,7.02466219]
[1767748950017,84.6,139.8,139.71,0.57946219]
[1767748950225,84.6,139.8,139.69,6.4461]
[1767748950615,100.2075,139.79,139.68,0.57946219]
[1767748951116,184.8042,139.8,139.68,0.57946219]
[1767748951316,14.43564062,139.82,139.7,0.57946219]
[1767748952723,14.43564062,139.82,139.72,0.5699695]
[1767748953617,6.4409,139.81,139.73,6.4444]
[1767748954924,6.4409,139.81,139.71,91.6150695]
[1767748955114,6.4409,139.81,139.71,85.1699695]
[1767748955317,6.4409,139.81,139.73,6.4444]
[1767748955517,6.4409,139.81,139.73,7.0143695]
[1767748955818,6.4409,139.81,139.71,7.0150695]
[1767748956013,6.4409,139.81,139.71,0.5699695]
[1767748957521,6.4409,139.81,139.73,6.4444]
[1767748957825,14.43564062,139.82,139.71,0.5699695]
[1767748958028,114.62554062,139.82,139.71,0.5699695]
[1767748958630,6.442,139.79,139.71,7.0152695]
[1767748958831,14.43564062,139.82,139.72,0.5699695]
[1767748959126,14.43564062,139.82,139.74,0.5699695]
[1767748959827,14.43564062,139.82,139.76,7.0129695]
[1767748960130,84.56,139.89,139.77,0.5699695]
[1767748960333,100.1408,139.88,139.77,0.5699695]
[1767748960529,6.4386,139.86,139.77,7.0124695]
[1767748960730,84.56,139.89,139.78,0.5699695]
[1767748961426,90.9974,139.89,139.78,0.5699695]
[1767748961927,6.4377,139.88,139.8,6.4412]
[1767748962336,100.1002,139.94,139.8,0.5699695]
[1767748962631,100.1002,139.94,139.81,7.0105695]
[1767748962632,6.4368,139.9,139.81,7.0105695]
[1767748962931,184.6655,139.93,139.81,0.5699695]
[1767748963130,6.436,139.92,139.82,6.4402]
[1767748963329,6.436,139.92,139.82,7.0101695]
[1767748964125,6.4363,139.91,139.82,0.5699695]
[1767748964928,6.4363,139.91,139.79,185.3315695]
[1767748965325,6.4363,139.91,139.8,0.5699695]
[1767748965527,6.4363,139.91,139.81,6.4406]
[1767748965727,6.4363,139.91,139.81,7.0105695]
[1767748967233,6.4368,139.9,139.81,7.0105695]
[1767748968133,6.4372,139.89,139.81,0.5699695]
[1767748972937,100.1346,139.89,139.78,7.0117695]
[1767748973338,184.6546,139.89,139.78,7.0117695]
[1767748974741,6.4386,139.86,139.78,7.0117695]
[1767748977142,6.439,139.85,139.78,7.0117695]
[1767748977344,100.1499,139.87,139.76,6.4427]
[1767748977839,6.44,139.83,139.76,6.4427]
[1767748981345,6.44,139.83,139.75,0.5699695]
[1767748981936,6.44,139.83,139.75,7.0134695]
[1767748983237,184.6785,139.86,139.75,7.0134695]
[1767748983238,6.4404,139.82,139.75,7.0134695]
[1767748983447,84.52,139.85,139.75,7.0134695]
[1767748984546,6.4399,139.83,139.75,7.0134695]
[1767748986850,6.4405,139.82,139.75,7.0134695]
[1767748989048,6.4409,139.81,139.74,6.444]
[1767748989251,6.4409,139.81,139.74,7.04467256]
[1767748989848,84.52,139.84,139.74,7.04467256]
[1767748990444,184.6924,139.84,139.72,6.4446]
[1767748990644,100.1767,139.83,139.72,6.4446]
[1767748990849,84.52,139.82,139.72,6.4446]
[1767748991049,184.7071,139.82,139.71,0.60067256]
[1767748991352,100.2001,139.8,139.67,0.60067256]
[1767748991554,6.4437,139.75,139.68,6.4467]
[1767748991752,184.726,139.79,139.68,6.4467]
[1767748992350,6.4437,139.75,139.67,7.04787256]
[1767748995352,84.52,139.79,139.69,0.60067256]
[1767748995851,84.52,139.79,139.67,0.60067256]
[1767748996051,6.4431,139.76,139.67,0.60067256]
[1767748997357,6.4437,139.75,139.68,6.4467]
[1767748997657,100.217,139.78,139.64,0.60067256]
[1767748997859,184.7282,139.79,139.68,6.4467]
[1767748998660,184.7282,139.79,139.68,7.04737256]
[1767748998860,6.4435,139.76,139.69,7.04697256]
[1767748999358,6.4424,139.78,139.69,7.04697256]
[1767748999561,84.52,139.79,139.7,0.60067256]
[1767748999953,84.52,139.79,139.67,0.60067256]
[1767748999954,6.4428,139.77,139.67,0.60067256]
[1767749000754,6.4428,139.77,139.69,6.4459]
[1767749001373,100.2134,139.78,139.67,0.60067256]
[1767749002665,6.4441,139.74,139.66,6.4476]
[1767749002858,100.2237,139.77,139.64,0.60067256]
[1767749003660,6.4446,139.73,139.65,7.04867256]
[1767749005266,6.4436,139.75,139.67,0.60067256]
[1767749005757,6.4436,139.75,139.68,7.04737256]
[1767749008868,6.4436,139.75,139.68,0.60067256]
[1767749009074,6.4436,139.75,139.66,7.04797256]
[1767749009276,6.4436,139.75,139.67,0.60067256]
[1767749009476,6.4436,139.75,139.67,7.04787256]
[1767749009768,6.4436,139.75,139.67,0.60067256]
[1767749010579,6.4436,139.75,139.68,7.04747256]
[1767749012491,6.444,139.74,139.68,0.60067256]
[1767749012790,1.63620794,139.75,139.68,0.60067256]
[1767749013488,6.445,139.72,139.65,0.58912242]
[1767749013797,1.63620794,139.75,139.65,0.58912242]
[1767749014494,8.08020794,139.75,139.67,7.03632242]
[1767749014690,86.21620794,139.75,139.67,7.03632242]
[1767749015594,6.4441,139.74,139.67,7.03632242]
[1767749016493,6.4441,139.74,139.68,6.4468]
[1767749016685,6.4441,139.74,139.67,0.58912242]
[1767749016886,8.08080794,139.73,139.67,0.58912242]
[1767749017082,8.08080794,139.73,139.62,100.3252]
[1767749017083,1.63620794,139.73,139.64,0.58912242]
[1767749018096,6.4452,139.72,139.65,6.4481]
[1767749018292,6.4452,139.72,139.65,7.03722242]
[1767749018496,6.4452,139.72,139.65,0.58912242]
[1767749019100,84.58,139.74,139.62,86.23620794]
[1767749019101,6.4443,139.74,139.67,0.58912242]
[1767749020399,6.4443,139.74,139.68,0.58912242]
[1767749022291,6.4447,139.73,139.65,0.58912242]
[1767749022703,6.4447,139.73,139.65,7.03682242]
[1767749022999,6.4447,139.73,139.65,0.58912242]